Cogmind - Beta 13 @@@ ROGUE MODE // 2024.03.31 @ 22:03:23 Player: Gingerlink Result: Destroyed by L-31 Rogue with Katana Performance ------------- Evolutions (1) 500 Regions Visited (2) 400 Robots Destroyed (39) 195 Value Destroyed (908) 908 Prototype IDs (0) 0 Alien Tech Used (0) 0 Bonus (46) 46 TOTAL SCORE: 2049 Bonus ------- High Alert Combat Kills 46 Cogmind --------- Core Integrity 0/400 Matter 8/300 Energy 100/100 System Corruption 0% Temperature Cool (0) Movement Core (200) Ox3 Location -9/Materials Parts ------- > --- POWER (2) -------- (None) > --- PROPULSION (2) --- (None) > --- UTILITY (3) ------ Medium Storage Unit Power Shielding > --- WEAPON (2) ------- Datajack > --- INVENTORY (10) --- Light Treads Light Treads Large Storage Unit Peak State ------------ > --- POWER ------------ Light Ion Engine Light Nuclear Core > --- PROPULSION ------- Light Treads Light Treads > --- UTILITY ---------- Medium Storage Unit Light Armor Plating Light Armor Plating > --- WEAPON ----------- Grenade Launcher Rocket Launcher > --- INVENTORY -------- Large Storage Unit Power Shielding Shield Generator Grenade Launcher Datajack [Rating: 12] Favorites ----------- Power Light Nuclear Core Engine Light Ion Engine Power Core Light Nuclear Core Propulsion Aluminum Leg Treads Light Treads Leg Aluminum Leg Hover Unit Hover Unit Flight Unit Flight Unit Utility Light Armor Plating Device Heat Sink Storage Large Storage Unit Protection Light Armor Plating Weapon Grenade Launcher Energy Gun Small Laser Energy Cannon Beam Cannon Ballistic Gun Light Assault Rifle Launcher Grenade Launcher Special Melee Weapon Datajack Build | -11 -10 -9 ------- Run | Yrd Mat Mat Slots Evolved 2 | . . 2 Power 1 | . . 1 Propulsion . | . . . Utility 1 | . . 1 Weapon . | . . . Parts Attached 33 | 5 18 10 Power 4 | 1 2 1 Engine 3 | 1 1 1 Core 1 | . 1 . Reactor . | . . . Propulsion 11 | 2 7 2 Treads 2 | . 1 1 Leg 7 | 2 4 1 Wheel . | . . . Hover 1 | . 1 . Flight 1 | . 1 . Utility 8 | . 5 3 Device 2 | . 1 1 Storage 2 | . 1 1 Processor . | . . . Hackware . | . . . Protection 4 | . 3 1 Artifact . | . . . Weapon 10 | 2 4 4 Energy Gun 1 | 1 . . Energy Cannon 1 | . 1 . Ballistic Gun 1 | 1 . . Ballistic Cannon . | . . . Launcher 6 | . 3 3 Special Weapon . | . . . Impact Weapon . | . . . Slashing Weapon . | . . . Piercing Weapon . | . . . Special Melee Weapon 1 | . . 1 Unidentified Prototypes . | . . . Parts Lost 8 | . 1 7 Power 1 | . . 1 Propulsion 1 | . 1 . Utility 3 | . . 3 Weapon 3 | . . 3 Highest Loss Streak 6 | . 1 6 To Critical Strikes . | . . . Average Slot Usage (%) 89 | . 92 77 Engine 4 | . 3 7 Core 10 | . 10 10 Treads 5 | . 3 12 Leg 12 | . 16 . Hover 1 | . 1 . Device 4 | . 5 . Storage 6 | . 6 7 Protection 16 | . 15 20 Energy Gun 1 | . 2 . Energy Cannon 6 | . 8 . Ballistic Gun 3 | . 4 . Launcher 14 | . 13 18 Naked Turns . | . . . Heaviest Build 34 | 5 34 31 Greatest Support 40 | 20 20 40 Greatest Overweight (x) 3 | . 3 3 Average Overweight (x) . | . . . Largest Inventory Capacity 15 | 5 15 10 Average Capacity 9 | 5 9 8 Most Carried 9 | 5 9 7 Average Carried 4 | 3 4 4 Final Capacity 10 | 5 5 10 Final Carried 5 | 5 4 3 Class Distribution -------------------- 95% | Mutant 4% | Scavenger-Mutant Dominant Class ---------------- Mutant | -10/Materials Mutant | -9/Materials Resources | -11 -10 -9 ----------- Run | Yrd Mat Mat Matter Collected 662 | 254 258 150 Remotely . | . . . Salvage Created 764 | 31 251 482 Parts 71 | 2 22 47 Haulers Intercepted 1 | . . 1 Recyclers Shooed 1 | . 1 . Parts Field Recycled . | . . . Retrieved Matter . | . . . Parts Self-Destructed . | . . . Prevented . | . . . Kills | -11 -10 -9 ------- Run | Yrd Mat Mat Combat Hostiles Destroyed 22 | 1 7 14 Guns 3 | 1 2 . Cannons 3 | . 3 . AOE 16 | . 2 14 Classes Destroyed 10 | 1 2 7 Worker 3 | . . 3 Builder 4 | . . 4 Hauler 1 | . . 1 Recycler 1 | . . 1 Mechanic 1 | . . 1 Operator 1 | . . 1 Watcher 6 | . 3 3 Swarmer 6 | . 2 4 Grunt 14 | 1 5 8 Sentry 2 | . . 2 Best Kill Streak 14 | 1 2 14 Combat Bots Only 7 | 1 2 7 Max Kills in Single Turn 4 | 1 2 4 Gunslinging . | . . . Exploded 2 | . 2 2 Melee . | . . . Uniques/NPCs Destroyed . | . . . Combat | -11 -10 -9 -------- Run | Yrd Mat Mat Hostile Shots Fired 114 | 5 47 62 Missed 31 | . 17 14 Damage Taken 1572 | 55 349 1168 Core 511 | 12 99 400 Absorbed by Shields 9 | . . 9 Redirected to Shielding 15 | . 15 . Core Remaining (%) 75 | 95 55 . Volleys Fired 55 | 4 30 21 Largest 2 | 2 2 2 Hottest 90 | 60 90 63 Shots Fired 100 | 8 60 32 Gun 38 | 8 30 . Cannon 24 | . 24 . Launcher 38 | . 6 32 Special . | . . . Kinetic 30 | 4 26 . Thermal 32 | 4 28 . Explosive 38 | . 6 32 Electromagnetic . | . . . Robot Hit Streak 8 | 5 5 8 Robot Miss Streak 2 | 1 2 2 Penetration Max . | . . . Secondary Targets . | . . . Shots Hit Robots 52 | 6 32 14 Core Hits 59 | 2 18 39 Critical Kills . | . . . Critical Parts Destroyed . | . . . Critical Strikes . | . . . Melee Attacks 1 | . . 1 Impact . | . . . Slashing . | . . . Piercing . | . . . Sneak Attacks . | . . . Combat Hostiles . | . . . Follow-up Attacks . | . . . Damage Inflicted 2618 | 59 552 2007 Guns 205 | 59 146 . Cannons 176 | . 176 . Explosions 2228 | . 221 2007 Melee . | . . . Ramming 9 | . 9 . Kinetic 138 | 15 123 . Thermal 243 | 44 199 . Explosive 2228 | . 221 2007 Electromagnetic . | . . . Impact . | . . . Slashing . | . . . Piercing . | . . . Highest Corruption . | . . . Average Corruption . | . . . Corruption Purged . | . . . Corruption Blocked . | . . . Overload Shots . | . . . Overflow Damage 109 | . . 109 Projectiles . | . . . Explosions 109 | . . 109 Melee . | . . . Knockbacks . | . . . Impact . | . . . Kinetic . | . . . Secondary . | . . . Self-Inflicted Damage 337 | . 29 308 Shots 10 | . 1 9 Rammed 5 | . 4 1 Targets Rammed 6 | . 5 1 Kicked 1 | . 1 . Crushed . | . . . Highest Temperature 110 | 26 110 83 Average Temperature 28 | 13 29 30 Received Heat Transfer 321 | 30 114 177 Siege Activations . | . . . Robots Corrupted . | . . . Combat Hostiles . | . . . Parts Fried . | . . . Impact Corruptions . | . . . Robots Melted . | . . . Combat Hostiles . | . . . Parts Melted . | . . . Heat Transferred 520 | 100 420 . Parts Sabotaged . | . . . Parts Stolen . | . . . Parts Stripped . | . . . Power Chain Reactions . | . . . Alert | -11 -10 -9 ------- Run | Yrd Mat Mat Peak Influence 705 | 20 85 705 Initial 13 | . 13 9 Average 103 | 4 27 401 Maximum Alert Level 3 | . . 3 Low Security (%) 82 | 100 100 16 Level 1 3 | . . 19 Level 2 13 | . . 63 Level 3 . | . . 1 Level 4 . | . . . Level 5 . | . . . High Security . | . . . Max Security . | . . . Squads Dispatched 4 | . 1 3 Investigation 1 | . 1 . Extermination . | . . . Reinforcement 2 | . . 2 Assault 1 | . . 1 Garrison . | . . . Intercept . | . . . Searches Triggered . | . . . Construction Impeded 1 | . . 1 Haulers Reinforced . | . . . Active Scanning Responses . | . . . Cargo Convoy Interrupts . | . . . Stealth | -11 -10 -9 --------- Run | Yrd Mat Mat Distress Signals 3 | . . 3 Communications Jammed . | . . . Distress Signals . | . . . Times Spotted 45 | 1 19 25 Peak Tracking Total 7 | 1 6 7 Tactical Retreats . | . . . Traps | -11 -10 -9 ------- Run | Yrd Mat Mat Traps Triggered 1 | . 1 . Indirectly . | . . . Trap Hack Attempts . | . . . Triggered . | . . . Disarmed . | . . . Reprogrammed . | . . . Reused . | . . . Traps Extracted . | . . . Installed . | . . . Triggered . | . . . Machines | -11 -10 -9 ---------- Run | Yrd Mat Mat Machines Disabled 10 | . 2 8 Max in Single Turn 1 | . 1 1 Machines Repaired . | . . . Machines Dismantled . | . . . Machines Sabotaged . | . . . Overloaded Fab Kills . | . . . Hacking | -11 -10 -9 --------- Run | Yrd Mat Mat Machines Accessed 4 | . 4 . Terminals 3 | . 3 . Fabricators . | . . . Repair Stations 1 | . 1 . Recycling Units . | . . . Scanalyzers . | . . . Garrison Access . | . . . Total Hacks 9 | . 9 . Successful 6 | . 6 . Failed 3 | . 3 . Catastrophic . | . . . Database Lockouts . | . . . Manual . | . . . Terminals 7 | . 7 . Fabricators . | . . . Repair Stations 2 | . 2 . Recycling Units . | . . . Scanalyzers . | . . . Garrison Access . | . . . Terminal Hacks 5 | . 5 . Record 4 | . 4 . Alert Level 1 | . 1 . Fabricator Hacks . | . . . Repair Station Hacks 1 | . 1 . Scan Component 1 | . 1 . Recycling Unit Hacks . | . . . Scanalyzer . | . . . Garrison Access Hacks . | . . . Unauthorized Hacks . | . . . Terminals . | . . . Fabricators . | . . . Repair Stations . | . . . Recycling Units . | . . . Scanalyzers . | . . . Garrison Access . | . . . Data Cores Recovered . | . . . Used . | . . . Hacking Detections 3 | . 3 . Full Trace Events . | . . . Feedback Events . | . . . Feedback Blocked . | . . . Robot Schematics Acquired . | . . . Robots Built . | . . . Authchips . | . . . Time . | . . . Total Robot Build Rating . | . . . Part Schematics Acquired . | . . . Parts Built . | . . . Authchips . | . . . Time . | . . . Total Part Build Rating . | . . . Parts Repaired . | . . . Time . | . . . Parts Recycled . | . . . Recycled Matter . | . . . Retrieved Matter . | . . . Retrieved Components . | . . . Parts Scanalyzed . | . . . Part Schematics Acquired . | . . . Parts Damaged . | . . . Bothacking | -11 -10 -9 ------------ Run | Yrd Mat Mat Used RIF Installer . | . . . Robots Hacked 1 | . . 1 Non-combat . | . . . Combat 1 | . . 1 Robot Hacks Applied 1 | . . 1 parse_system 1 | . . 1 Relay Couplers Released . | . . . Fabnet Peak Effective % . | . . . Robots Rewired . | . . . Allies Hacked . | . . . Hacks Repelled . | . . . Allies | -11 -10 -9 -------- Run | Yrd Mat Mat Total Allies . | . . . Largest Group . | . . . Highest-Rated Group . | . . . Highest-Rated Ally . | . . . Total Orders . | . . . Ally Attacks . | . . . Total Damage . | . . . Kills . | . . . Allies Corrupted . | . . . Allies Melted . | . . . Intel | -11 -10 -9 ------- Run | Yrd Mat Mat Robot Analysis Total . | . . . Derelict Logs Recovered . | . . . Drone Launches . | . . . Drone Recoveries . | . . . Exploration | -11 -10 -9 ------------- Run | Yrd Mat Mat Turns Passed 2557 | 190 1836 531 Spaces Moved 1455 | 174 1035 246 Core 84 | 63 12 9 Treads 465 | . 242 223 Legs 758 | 111 633 14 Wheels . | . . . Hover 138 | . 138 . Flight 10 | . 10 . Fastest Speed 50 | 50 120 120 Average Speed 157 | 94 160 187 Slowest Speed 280 | 120 280 260 Overloaded Moves . | . . . Propulsion Burnouts . | . . . Robots Hopped . | . . . Cave-ins Triggered . | . . . Exploration Rate (%) 39 | 7 82 30 Regions Visited 2 Branch Regions . Pre-discovered Areas . | . . . Known Exits Taken . | . . . Unknown Exits Taken 2 | 1 1 . Scrap Searched . | . . . Spaces Dug . | . . . Terrain Destroyed 268 | . 42 226 Melee . | . . . Projectile . | . . . AOE 268 | . 42 226 Terrain Rammed . | . . . Walls Destroyed . | . . . Machines Disabled . | . . . Actions | -11 -10 -9 --------- Run | Yrd Mat Mat Total 1637 | 192 1163 282 Wait 35 | . 35 . Move 1453 | 173 1034 246 Hop . | . . . Pick Up 25 | 10 15 . Fast Attach 8 | . 4 4 Attach 24 | 5 14 5 Detach 11 | . 8 3 Swap 1 | . . 1 Drop 18 | . 18 . Fire 55 | 4 30 21 Melee 1 | . . 1 Ram 2 | . 2 . Kick 1 | . 1 . Crush 3 | . 2 1 Escape Stasis . | . . . Rewire . | . . . Trap . | . . . Miscellaneous . | . . . Route ------- -11/Scrapyard -10/Materials (discovered 4 exits: [*Mat x2] / [*Min x2]) -9/Materials (discovered 1 exit: [*Mat]) History --------- Turn | Location | Event 2 | -11/Scrapyard | Met Revision 17 128 | -11/Scrapyard | Discovered new exit (range 8) 191 | -11/Scrapyard | Entered Materials 191 | -10/Materials | Discovered new exit (range 7) 305 | -10/Materials | Build established: Mutant 664 | -10/Materials | Discovered new exit (range 7) 1425 | -10/Materials | Discovered new exit (range 10) 1930 | -10/Materials | Discovered new exit (range 5) 2027 | -10/Materials | Entered another Materials area 2027 | -9/Materials | Evolved 2 slots: Power x1, Utility x1 2167 | -9/Materials | Destroyed 7 combat bots 2395 | -9/Materials | Discovered new exit (range 3) 2427 | -9/Materials | First assault squad dispatched 2541 | -9/Materials | Core integrity fell below 50% 2553 | -9/Materials | Core integrity fell below 20% 2558 | -9/Materials | Destroyed by L-31 Rogue with Katana Last Messages --------------- Imp. Aluminum Leg severed. Shield Generator destroyed. Destroyed Wheel. M-13 Machinist destroyed. G-34 Mercenary destroyed. Grenade Launcher destroyed. Destroyed Grenade Launcher. The unstable cave ceiling collapses. Bump into an enemy to attack with the active melee weapon. Even while active, melee weapons do not fire together with ranged weapons in the same volley. Jacked L-31 Rogue... Right-click on available options for more info. Keyboard players can use Shift-a~z. >>parse_system Reading system data... The unstable cave ceiling collapses. M-13 Machinist repairs L-31 Rogue. M-13 Machinist fits Backup Propulsion I on L-31 Rogue. [Achievement: First Step to Greatness] Map ----- +----------------------------------------------------+ | ??????????# # # ""# | | ??????????# #%= # ""# | | ??????????# #[ # """# | | ??????????#####+##### + "" # | | ?########+#### # """# | | # """? | | ??## # #### # """? | | ?## # ### # "?? | | ?# # "" # ?? | | ?# # [ | ########? | | ## # [ [ #???????? | | # [ #???????? | | # # [[ = #???????? | | ## # #???####? | | ?## # #??? #? | | ?# # #= ! #??? #? | | ?# # % #= #?? #? | | ?# #+##### +?? #? | | ?### # = ^# ?T" ## | | ??# # ## # ?"" | | ?## # ## #### # | | ?# ##+########## # | | ?## ###??# % # | | ??# #????# * g | | ??## # #????# %* "" % | | ???# ## #????# @ " %# | | ???# ## #????# m l" # | | ???# ## #????# # # #? | | ???# #? #????# ## #####? | | ???# #? #??#?# ####????? | | ???# #? ### ## #???????? | | ???# #?######### # #???????? | | ???# #?????? = ! # ######### | | ???# #?????# "" # # ! # | | ???# #?????# "R[! # # " # | | ???# #????## "" || # # """ # | | ???# #????# *! # # "" # | | ???# #????# ! = = # # """ # | | ???# ###### %* + # "" # | | ???# # ### [ # # """ # | | ???# # # # + """ # | | ####+###### # # """ # | | # [ # " # | | #=== # # #[ # | | #== ] # ######### | | #== # #???????? | | # # # #???????? | | # """ """ #???????? | | + """ T"# #???????? | | # """ """# # #??????? | +----------------------------------------------------+ Best States ------------- Heat Dissipation 35 Energy Generation 19 Energy Capacity 250 Matter Stores 300 Matter Capacity 300 Sight Range 16 Terrain Scan Density 10 Armor Coverage 300 Power Shielding 33 Evasion (%) 55 Recoil Reduction 2 Item Schematics ----------------- None Robot Schematics ------------------ None Fabricated ------------ Nothing Alien Tech Used ----------------- None Achievements -------------- First Step to Greatness Let's See Who's Tougher Loot Pinata Remodeling Significant Disruption Uninvited Guest Challenges ------------ None Game ------ Seed ForceLongswordLance Manual? 0 Play Time 00:48:50 Cumulative 0.8 hours Start 2024.03.31 @ 21:10:12 End 2024.03.31 @ 22:03:23 Sessions 1 Manual Loads 0 Difficulty Rogue Special Mode None Game No. 1 Rogue 1 Adventurer 0 Explorer 0 Win Type - Total 0 Types 0/0/0/0/0/0/0/0/0 Lore% 0 Gallery% 2 Achievement% 2 Wizard Run 0 Options --------- Layout 0 ASCII 0 Keyboard 1 Movement Vi Keybinds 0 Fullscreen 2 Font 24/Smallcaps Map View 76x50 Zoom Use 0% Tactical HUD 0 Map Filters NONE Filters NONE Steam 1 RUN: 2dd4a043-46c5-41a9-9587-e4884297f46d